Workbook

Sheet Миль ара қашықтығы жұрналы
B1: МИЛЬ АРА ҚАШЫҚТЫҒЫ ЖҰРНАЛЫ
C11: ТӨЛЕНЕТІН | E11: БАРЛЫҒЫ
C12: МИЛЬ | E12: ТӨЛЕНЕТІН
C17: 2012-05-01 | E17: 2012-05-10
C19: МЕРЗІМ | E19: МЕРЗІМ
C20: БАСТАУ | E20: АЯҚТАУ
C26: 54 | E26: 9,800
C28: ТӨЛЕНЕТІН | E28: АЛДЫҢҒЫ ЖАНАРМАЙ
C29: ¢/Миль | E29: ОДОМЕТР

Sheet Жұрнал деректері
B1: МИЛЬ АРА ҚАШЫҚТЫҒЫ ЖҰРНАЛЫ
B5: КҮН | C5: ӘРЕКЕТ | D5: ОДОМЕТР 1 | E5: ОРЫН | F5: ОДОМЕТР 2 | G5: МАҚСАТТАЛҒАН ОРЫН | H5: ТӨЛЕНЕТІН | I5: ГАЛЛОН | J5: БАҒА | K5: МИЛЬ | L5: Миль/галлон | M5: ¢/МИЛЬ | N5: ЕСКЕРТПЕЛЕР
B6: 2012-05-01 | C6: Саяхат | D6: 10,123 | E6: Chevron - Main St | F6: 10,130 | I6: 15.56 | J6: Т64.11 | K6: =милялар -> 7 | L6: =IF(OR(LEN(деректер[[#This Row],[ОДОМЕТР 2]]),деректер[[#This Row],[ОДОМЕТР 1]]=""),"",IFERROR(деректер[[#This Row],[МИЛЬ]]/деректер[[#This Row],[ГАЛЛОН]],"")) ->  | M6: =IF(деректер[[#This Row],[Миль/галлон]]="","",100*деректер[[#This Row],[БАҒА]]/деректер[[#This Row],[МИЛЬ]]) -> 
B7: 2012-05-01 | C7: Саяхат | D7: 10,130 | E7: Кеңсе | F7: 10,200 | G7: Cherry Street | H7: Иә | K7: =милялар -> 70 | L7: =IF(OR(LEN(деректер[[#This Row],[ОДОМЕТР 2]]),деректер[[#This Row],[ОДОМЕТР 1]]=""),"",IFERROR(деректер[[#This Row],[МИЛЬ]]/деректер[[#This Row],[ГАЛЛОН]],"")) ->  | M7: =IF(деректер[[#This Row],[Миль/галлон]]="","",100*деректер[[#This Row],[БАҒА]]/деректер[[#This Row],[МИЛЬ]]) -> 
B8: 2012-05-01 | C8: Саяхат | D8: 10,200 | E8: Смитфилдтер | F8: 10,285 | G8: Кеңсе | H8: Иә | K8: =милялар -> 85 | L8: =IF(OR(LEN(деректер[[#This Row],[ОДОМЕТР 2]]),деректер[[#This Row],[ОДОМЕТР 1]]=""),"",IFERROR(деректер[[#This Row],[МИЛЬ]]/деректер[[#This Row],[ГАЛЛОН]],"")) ->  | M8: =IF(деректер[[#This Row],[Миль/галлон]]="","",100*деректер[[#This Row],[БАҒА]]/деректер[[#This Row],[МИЛЬ]]) -> 
B9: 2012-05-02 | C9: Саяхат | D9: 10,285 | E9: Кеңсе | F9: 10,450 | G9: Colo Vineyard | H9: Иә | K9: =милялар -> 165 | L9: =IF(OR(LEN(деректер[[#This Row],[ОДОМЕТР 2]]),деректер[[#This Row],[ОДОМЕТР 1]]=""),"",IFERROR(деректер[[#This Row],[МИЛЬ]]/деректер[[#This Row],[ГАЛЛОН]],"")) ->  | M9: =IF(деректер[[#This Row],[Миль/галлон]]="","",100*деректер[[#This Row],[БАҒА]]/деректер[[#This Row],[МИЛЬ]]) -> 
B10: 2012-05-02 | C10: Жанармай | D10: 10,450 | E10: Shell | I10: 11.20 | J10: Т55.42 | K10: =милялар -> 650 | L10: =IF(OR(LEN(деректер[[#This Row],[ОДОМЕТР 2]]),деректер[[#This Row],[ОДОМЕТР 1]]=""),"",IFERROR(деректер[[#This Row],[МИЛЬ]]/деректер[[#This Row],[ГАЛЛОН]],"")) -> 58.0 | M10: =IF(деректер[[#This Row],[Миль/галлон]]="","",100*деректер[[#This Row],[БАҒА]]/деректер[[#This Row],[МИЛЬ]]) -> 8.5
B11: 2012-05-02 | C11: Саяхат | D11: 10,500 | E11: Colo Vineyard | F11: 10,518 | G11: Кеңсе | H11: Иә | K11: =милялар -> 18 | L11: =IF(OR(LEN(деректер[[#This Row],[ОДОМЕТР 2]]),деректер[[#This Row],[ОДОМЕТР 1]]=""),"",IFERROR(деректер[[#This Row],[МИЛЬ]]/деректер[[#This Row],[ГАЛЛОН]],"")) ->  | M11: =IF(деректер[[#This Row],[Миль/галлон]]="","",100*деректер[[#This Row],[БАҒА]]/деректер[[#This Row],[МИЛЬ]]) -> 
B12: 2012-05-03 | C12: Саяхат | D12: 10,518 | E12: Кеңсе | F12: 10,745 | G12: Кеңсе | H12: Иә | K12: =милялар -> 227 | L12: =IF(OR(LEN(деректер[[#This Row],[ОДОМЕТР 2]]),деректер[[#This Row],[ОДОМЕТР 1]]=""),"",IFERROR(деректер[[#This Row],[МИЛЬ]]/деректер[[#This Row],[ГАЛЛОН]],"")) ->  | M12: =IF(деректер[[#This Row],[Миль/галлон]]="","",100*деректер[[#This Row],[БАҒА]]/деректер[[#This Row],[МИЛЬ]]) -> 
B13: 2012-05-04 | C13: Жанармай | D13: 10,745 | E13: Chevron - Main St | I13: 16.60 | J13: Т69.24 | K13: =милялар -> 295 | L13: =IF(OR(LEN(деректер[[#This Row],[ОДОМЕТР 2]]),деректер[[#This Row],[ОДОМЕТР 1]]=""),"",IFERROR(деректер[[#This Row],[МИЛЬ]]/деректер[[#This Row],[ГАЛЛОН]],"")) -> 17.8 | M13: =IF(деректер[[#This Row],[Миль/галлон]]="","",100*деректер[[#This Row],[БАҒА]]/деректер[[#This Row],[МИЛЬ]]) -> 23.5
B14: 2012-05-04 | C14: Саяхат | D14: 10,745 | E14: Кеңсе | F14: 10,800 | G14: Портервиль | H14: Иә | K14: =милялар -> 55 | L14: =IF(OR(LEN(деректер[[#This Row],[ОДОМЕТР 2]]),деректер[[#This Row],[ОДОМЕТР 1]]=""),"",IFERROR(деректер[[#This Row],[МИЛЬ]]/деректер[[#This Row],[ГАЛЛОН]],"")) ->  | M14: =IF(деректер[[#This Row],[Миль/галлон]]="","",100*деректер[[#This Row],[БАҒА]]/деректер[[#This Row],[МИЛЬ]]) -> 
B15: 2012-05-04 | C15: Саяхат | D15: 10,800 | E15: Портервиль | F15: 10,875 | G15: Кеңсе | H15: Иә | K15: =милялар -> 75 | L15: =IF(OR(LEN(деректер[[#This Row],[ОДОМЕТР 2]]),деректер[[#This Row],[ОДОМЕТР 1]]=""),"",IFERROR(деректер[[#This Row],[МИЛЬ]]/деректер[[#This Row],[ГАЛЛОН]],"")) ->  | M15: =IF(деректер[[#This Row],[Миль/галлон]]="","",100*деректер[[#This Row],[БАҒА]]/деректер[[#This Row],[МИЛЬ]]) -> 
B16: 2012-05-07 | C16: Саяхат | D16: 10,875 | E16: Кеңсе | F16: 10,921 | G16: Cherry Street | H16: Иә | K16: =милялар -> 46 | L16: =IF(OR(LEN(деректер[[#This Row],[ОДОМЕТР 2]]),деректер[[#This Row],[ОДОМЕТР 1]]=""),"",IFERROR(деректер[[#This Row],[МИЛЬ]]/деректер[[#This Row],[ГАЛЛОН]],"")) ->  | M16: =IF(деректер[[#This Row],[Миль/галлон]]="","",100*деректер[[#This Row],[БАҒА]]/деректер[[#This Row],[МИЛЬ]]) -> 
B17: 2012-05-07 | C17: Саяхат | D17: 10,921 | E17: Смитфилдтер | F17: 10,969 | G17: Кеңсе | H17: Иә | K17: =милялар -> 48 | L17: =IF(OR(LEN(деректер[[#This Row],[ОДОМЕТР 2]]),деректер[[#This Row],[ОДОМЕТР 1]]=""),"",IFERROR(деректер[[#This Row],[МИЛЬ]]/деректер[[#This Row],[ГАЛЛОН]],"")) ->  | M17: =IF(деректер[[#This Row],[Миль/галлон]]="","",100*деректер[[#This Row],[БАҒА]]/деректер[[#This Row],[МИЛЬ]]) -> 
B18: 2012-05-09 | C18: Саяхат | D18: 10,969 | E18: Кеңсе | F18: 11,000 | G18: Риверсайд | H18: Иә | K18: =милялар -> 31 | L18: =IF(OR(LEN(деректер[[#This Row],[ОДОМЕТР 2]]),деректер[[#This Row],[ОДОМЕТР 1]]=""),"",IFERROR(деректер[[#This Row],[МИЛЬ]]/деректер[[#This Row],[ГАЛЛОН]],"")) ->  | M18: =IF(деректер[[#This Row],[Миль/галлон]]="","",100*деректер[[#This Row],[БАҒА]]/деректер[[#This Row],[МИЛЬ]]) -> 
B19: 2012-05-09 | C19: Саяхат | D19: 11,000 | E19: Риверсайд | F19: 11,100 | G19: Басты | H19: Жоқ | K19: =милялар -> 100 | L19: =IF(OR(LEN(деректер[[#This Row],[ОДОМЕТР 2]]),деректер[[#This Row],[ОДОМЕТР 1]]=""),"",IFERROR(деректер[[#This Row],[МИЛЬ]]/деректер[[#This Row],[ГАЛЛОН]],"")) ->  | M19: =IF(деректер[[#This Row],[Миль/галлон]]="","",100*деректер[[#This Row],[БАҒА]]/деректер[[#This Row],[МИЛЬ]]) -> 

Sheet есептеулер (hidden)
A1: *** Бұл парақ жасырын болып қалуы үшін ***
I6: =OFFSET(I9,,secondAxis="Жанармай бағасы") -> ¢/Миль
M7: 2
H8: Саяхат | I8: Жанармай | J8: Жанармай | L8: Көмекші білік: | M8: =REPT("Миль/галлон",M7=1)&REPT("Жанармай бағасы",M7=2) -> Жанармай бағасы
H9: Жүргізілген миль | I9: Миль/галлон | J9: ¢/Миль
C10: Төленетін миль: | D10: =SUMIFS(деректер[МИЛЬ],деректер[ТӨЛЕНЕТІН],"Иә",деректер[КҮН],">="&periodStart,деректер[КҮН],"<="&periodEnd) -> 820 | F10: 1 | G10: =periodStart -> 2012-05-01 | H10: =SUMIFS(деректер[МИЛЬ],деректер[КҮН],G10,деректер[ӘРЕКЕТ],$H$8) -> 162 | I10: =IFERROR(AVERAGEIFS(деректер[Миль/галлон],деректер[КҮН],G10,деректер[ӘРЕКЕТ],$I$8),NA()) ->  | J10: =IFERROR(AVERAGEIFS(деректер[¢/МИЛЬ],деректер[КҮН],G10,деректер[ӘРЕКЕТ],$J$8),NA()) -> 
C11: Жалпы төленетін: | D11: =D10*ReimbursementPerMile/100 -> Т442.80 | F11: 2 | G11: =G10+1 -> 2012-05-02 | H11: =SUMIFS(деректер[МИЛЬ],деректер[КҮН],G11,деректер[ӘРЕКЕТ],$H$8) -> 183 | I11: =IFERROR(AVERAGEIFS(деректер[Миль/галлон],деректер[КҮН],G11,деректер[ӘРЕКЕТ],$I$8),NA()) -> 58.0 | J11: =IFERROR(AVERAGEIFS(деректер[¢/МИЛЬ],деректер[КҮН],G11,деректер[ӘРЕКЕТ],$J$8),NA()) -> 8.5
F12: 3 | G12: 2012-05-03 | H12: =SUMIFS(деректер[МИЛЬ],деректер[КҮН],G12,деректер[ӘРЕКЕТ],$H$8) -> 227 | I12: =IFERROR(AVERAGEIFS(деректер[Миль/галлон],деректер[КҮН],G12,деректер[ӘРЕКЕТ],$I$8),NA()) ->  | J12: =IFERROR(AVERAGEIFS(деректер[¢/МИЛЬ],деректер[КҮН],G12,деректер[ӘРЕКЕТ],$J$8),NA()) -> 
F13: 4 | G13: 2012-05-04 | H13: =SUMIFS(деректер[МИЛЬ],деректер[КҮН],G13,деректер[ӘРЕКЕТ],$H$8) -> 130 | I13: =IFERROR(AVERAGEIFS(деректер[Миль/галлон],деректер[КҮН],G13,деректер[ӘРЕКЕТ],$I$8),NA()) -> 17.8 | J13: =IFERROR(AVERAGEIFS(деректер[¢/МИЛЬ],деректер[КҮН],G13,деректер[ӘРЕКЕТ],$J$8),NA()) -> 23.5
F14: 5 | G14: 2012-05-05 | H14: =SUMIFS(деректер[МИЛЬ],деректер[КҮН],G14,деректер[ӘРЕКЕТ],$H$8) -> 0 | I14: =IFERROR(AVERAGEIFS(деректер[Миль/галлон],деректер[КҮН],G14,деректер[ӘРЕКЕТ],$I$8),NA()) ->  | J14: =IFERROR(AVERAGEIFS(деректер[¢/МИЛЬ],деректер[КҮН],G14,деректер[ӘРЕКЕТ],$J$8),NA()) -> 
F15: 6 | G15: 2012-05-06 | H15: =SUMIFS(деректер[МИЛЬ],деректер[КҮН],G15,деректер[ӘРЕКЕТ],$H$8) -> 0 | I15: =IFERROR(AVERAGEIFS(деректер[Миль/галлон],деректер[КҮН],G15,деректер[ӘРЕКЕТ],$I$8),NA()) ->  | J15: =IFERROR(AVERAGEIFS(деректер[¢/МИЛЬ],деректер[КҮН],G15,деректер[ӘРЕКЕТ],$J$8),NA()) -> 
F16: 7 | G16: 2012-05-07 | H16: =SUMIFS(деректер[МИЛЬ],деректер[КҮН],G16,деректер[ӘРЕКЕТ],$H$8) -> 94 | I16: =IFERROR(AVERAGEIFS(деректер[Миль/галлон],деректер[КҮН],G16,деректер[ӘРЕКЕТ],$I$8),NA()) ->  | J16: =IFERROR(AVERAGEIFS(деректер[¢/МИЛЬ],деректер[КҮН],G16,деректер[ӘРЕКЕТ],$J$8),NA()) -> 
F17: 8 | G17: 2012-05-08 | H17: =SUMIFS(деректер[МИЛЬ],деректер[КҮН],G17,деректер[ӘРЕКЕТ],$H$8) -> 0 | I17: =IFERROR(AVERAGEIFS(деректер[Миль/галлон],деректер[КҮН],G17,деректер[ӘРЕКЕТ],$I$8),NA()) ->  | J17: =IFERROR(AVERAGEIFS(деректер[¢/МИЛЬ],деректер[КҮН],G17,деректер[ӘРЕКЕТ],$J$8),NA()) -> 
F18: 9 | G18: 2012-05-09 | H18: =SUMIFS(деректер[МИЛЬ],деректер[КҮН],G18,деректер[ӘРЕКЕТ],$H$8) -> 131 | I18: =IFERROR(AVERAGEIFS(деректер[Миль/галлон],деректер[КҮН],G18,деректер[ӘРЕКЕТ],$I$8),NA()) ->  | J18: =IFERROR(AVERAGEIFS(деректер[¢/МИЛЬ],деректер[КҮН],G18,деректер[ӘРЕКЕТ],$J$8),NA()) -> 
F19: 10 | G19: 2012-05-10 | H19: =SUMIFS(деректер[МИЛЬ],деректер[КҮН],G19,деректер[ӘРЕКЕТ],$H$8) -> 0 | I19: =IFERROR(AVERAGEIFS(деректер[Миль/галлон],деректер[КҮН],G19,деректер[ӘРЕКЕТ],$I$8),NA()) ->  | J19: =IFERROR(AVERAGEIFS(деректер[¢/МИЛЬ],деректер[КҮН],G19,деректер[ӘРЕКЕТ],$J$8),NA()) -> 
F20: 11 | G20: 2012-05-11 | H20: =SUMIFS(деректер[МИЛЬ],деректер[КҮН],G20,деректер[ӘРЕКЕТ],$H$8) -> 0 | I20: =IFERROR(AVERAGEIFS(деректер[Миль/галлон],деректер[КҮН],G20,деректер[ӘРЕКЕТ],$I$8),NA()) ->  | J20: =IFERROR(AVERAGEIFS(деректер[¢/МИЛЬ],деректер[КҮН],G20,деректер[ӘРЕКЕТ],$J$8),NA()) -> 
F21: 12 | G21: 2012-05-12 | H21: =SUMIFS(деректер[МИЛЬ],деректер[КҮН],G21,деректер[ӘРЕКЕТ],$H$8) -> 0 | I21: =IFERROR(AVERAGEIFS(деректер[Миль/галлон],деректер[КҮН],G21,деректер[ӘРЕКЕТ],$I$8),NA()) ->  | J21: =IFERROR(AVERAGEIFS(деректер[¢/МИЛЬ],деректер[КҮН],G21,деректер[ӘРЕКЕТ],$J$8),NA()) -> 
F22: 13 | G22: 2012-05-13 | H22: =SUMIFS(деректер[МИЛЬ],деректер[КҮН],G22,деректер[ӘРЕКЕТ],$H$8) -> 0 | I22: =IFERROR(AVERAGEIFS(деректер[Миль/галлон],деректер[КҮН],G22,деректер[ӘРЕКЕТ],$I$8),NA()) ->  | J22: =IFERROR(AVERAGEIFS(деректер[¢/МИЛЬ],деректер[КҮН],G22,деректер[ӘРЕКЕТ],$J$8),NA()) -> 
F23: 14 | G23: 2012-05-14 | H23: =SUMIFS(деректер[МИЛЬ],деректер[КҮН],G23,деректер[ӘРЕКЕТ],$H$8) -> 0 | I23: =IFERROR(AVERAGEIFS(деректер[Миль/галлон],деректер[КҮН],G23,деректер[ӘРЕКЕТ],$I$8),NA()) ->  | J23: =IFERROR(AVERAGEIFS(деректер[¢/МИЛЬ],деректер[КҮН],G23,деректер[ӘРЕКЕТ],$J$8),NA()) -> 
F24: 15 | G24: 2012-05-15 | H24: =SUMIFS(деректер[МИЛЬ],деректер[КҮН],G24,деректер[ӘРЕКЕТ],$H$8) -> 0 | I24: =IFERROR(AVERAGEIFS(деректер[Миль/галлон],деректер[КҮН],G24,деректер[ӘРЕКЕТ],$I$8),NA()) ->  | J24: =IFERROR(AVERAGEIFS(деректер[¢/МИЛЬ],деректер[КҮН],G24,деректер[ӘРЕКЕТ],$J$8),NA()) -> 
F25: 16 | G25: 2012-05-16 | H25: =SUMIFS(деректер[МИЛЬ],деректер[КҮН],G25,деректер[ӘРЕКЕТ],$H$8) -> 0 | I25: =IFERROR(AVERAGEIFS(деректер[Миль/галлон],деректер[КҮН],G25,деректер[ӘРЕКЕТ],$I$8),NA()) ->  | J25: =IFERROR(AVERAGEIFS(деректер[¢/МИЛЬ],деректер[КҮН],G25,деректер[ӘРЕКЕТ],$J$8),NA()) -> 
F26: 17 | G26: 2012-05-17 | H26: =SUMIFS(деректер[МИЛЬ],деректер[КҮН],G26,деректер[ӘРЕКЕТ],$H$8) -> 0 | I26: =IFERROR(AVERAGEIFS(деректер[Миль/галлон],деректер[КҮН],G26,деректер[ӘРЕКЕТ],$I$8),NA()) ->  | J26: =IFERROR(AVERAGEIFS(деректер[¢/МИЛЬ],деректер[КҮН],G26,деректер[ӘРЕКЕТ],$J$8),NA()) -> 
F27: 18 | G27: 2012-05-18 | H27: =SUMIFS(деректер[МИЛЬ],деректер[КҮН],G27,деректер[ӘРЕКЕТ],$H$8) -> 0 | I27: =IFERROR(AVERAGEIFS(деректер[Миль/галлон],деректер[КҮН],G27,деректер[ӘРЕКЕТ],$I$8),NA()) ->  | J27: =IFERROR(AVERAGEIFS(деректер[¢/МИЛЬ],деректер[КҮН],G27,деректер[ӘРЕКЕТ],$J$8),NA()) -> 
F28: 19 | G28: 2012-05-19 | H28: =SUMIFS(деректер[МИЛЬ],деректер[КҮН],G28,деректер[ӘРЕКЕТ],$H$8) -> 0 | I28: =IFERROR(AVERAGEIFS(деректер[Миль/галлон],деректер[КҮН],G28,деректер[ӘРЕКЕТ],$I$8),NA()) ->  | J28: =IFERROR(AVERAGEIFS(деректер[¢/МИЛЬ],деректер[КҮН],G28,деректер[ӘРЕКЕТ],$J$8),NA()) -> 
F29: 20 | G29: 2012-05-20 | H29: =SUMIFS(деректер[МИЛЬ],деректер[КҮН],G29,деректер[ӘРЕКЕТ],$H$8) -> 0 | I29: =IFERROR(AVERAGEIFS(деректер[Миль/галлон],деректер[КҮН],G29,деректер[ӘРЕКЕТ],$I$8),NA()) ->  | J29: =IFERROR(AVERAGEIFS(деректер[¢/МИЛЬ],деректер[КҮН],G29,деректер[ӘРЕКЕТ],$J$8),NA()) -> 
F30: 21 | G30: 2012-05-21 | H30: =SUMIFS(деректер[МИЛЬ],деректер[КҮН],G30,деректер[ӘРЕКЕТ],$H$8) -> 0 | I30: =IFERROR(AVERAGEIFS(деректер[Миль/галлон],деректер[КҮН],G30,деректер[ӘРЕКЕТ],$I$8),NA()) ->  | J30: =IFERROR(AVERAGEIFS(деректер[¢/МИЛЬ],деректер[КҮН],G30,деректер[ӘРЕКЕТ],$J$8),NA()) -> 
F31: 22 | G31: 2012-05-22 | H31: =SUMIFS(деректер[МИЛЬ],деректер[КҮН],G31,деректер[ӘРЕКЕТ],$H$8) -> 0 | I31: =IFERROR(AVERAGEIFS(деректер[Миль/галлон],деректер[КҮН],G31,деректер[ӘРЕКЕТ],$I$8),NA()) ->  | J31: =IFERROR(AVERAGEIFS(деректер[¢/МИЛЬ],деректер[КҮН],G31,деректер[ӘРЕКЕТ],$J$8),NA()) -> 
F32: 23 | G32: 2012-05-23 | H32: =SUMIFS(деректер[МИЛЬ],деректер[КҮН],G32,деректер[ӘРЕКЕТ],$H$8) -> 0 | I32: =IFERROR(AVERAGEIFS(деректер[Миль/галлон],деректер[КҮН],G32,деректер[ӘРЕКЕТ],$I$8),NA()) ->  | J32: =IFERROR(AVERAGEIFS(деректер[¢/МИЛЬ],деректер[КҮН],G32,деректер[ӘРЕКЕТ],$J$8),NA()) -> 
F33: 24 | G33: 2012-05-24 | H33: =SUMIFS(деректер[МИЛЬ],деректер[КҮН],G33,деректер[ӘРЕКЕТ],$H$8) -> 0 | I33: =IFERROR(AVERAGEIFS(деректер[Миль/галлон],деректер[КҮН],G33,деректер[ӘРЕКЕТ],$I$8),NA()) ->  | J33: =IFERROR(AVERAGEIFS(деректер[¢/МИЛЬ],деректер[КҮН],G33,деректер[ӘРЕКЕТ],$J$8),NA()) -> 
F34: 25 | G34: 2012-05-25 | H34: =SUMIFS(деректер[МИЛЬ],деректер[КҮН],G34,деректер[ӘРЕКЕТ],$H$8) -> 0 | I34: =IFERROR(AVERAGEIFS(деректер[Миль/галлон],деректер[КҮН],G34,деректер[ӘРЕКЕТ],$I$8),NA()) ->  | J34: =IFERROR(AVERAGEIFS(деректер[¢/МИЛЬ],деректер[КҮН],G34,деректер[ӘРЕКЕТ],$J$8),NA()) -> 
F35: 26 | G35: 2012-05-26 | H35: =SUMIFS(деректер[МИЛЬ],деректер[КҮН],G35,деректер[ӘРЕКЕТ],$H$8) -> 0 | I35: =IFERROR(AVERAGEIFS(деректер[Миль/галлон],деректер[КҮН],G35,деректер[ӘРЕКЕТ],$I$8),NA()) ->  | J35: =IFERROR(AVERAGEIFS(деректер[¢/МИЛЬ],деректер[КҮН],G35,деректер[ӘРЕКЕТ],$J$8),NA()) -> 
F36: 27 | G36: 2012-05-27 | H36: =SUMIFS(деректер[МИЛЬ],деректер[КҮН],G36,деректер[ӘРЕКЕТ],$H$8) -> 0 | I36: =IFERROR(AVERAGEIFS(деректер[Миль/галлон],деректер[КҮН],G36,деректер[ӘРЕКЕТ],$I$8),NA()) ->  | J36: =IFERROR(AVERAGEIFS(деректер[¢/МИЛЬ],деректер[КҮН],G36,деректер[ӘРЕКЕТ],$J$8),NA()) -> 
F37: 28 | G37: 2012-05-28 | H37: =SUMIFS(деректер[МИЛЬ],деректер[КҮН],G37,деректер[ӘРЕКЕТ],$H$8) -> 0 | I37: =IFERROR(AVERAGEIFS(деректер[Миль/галлон],деректер[КҮН],G37,деректер[ӘРЕКЕТ],$I$8),NA()) ->  | J37: =IFERROR(AVERAGEIFS(деректер[¢/МИЛЬ],деректер[КҮН],G37,деректер[ӘРЕКЕТ],$J$8),NA()) -> 
F38: 29 | G38: 2012-05-29 | H38: =SUMIFS(деректер[МИЛЬ],деректер[КҮН],G38,деректер[ӘРЕКЕТ],$H$8) -> 0 | I38: =IFERROR(AVERAGEIFS(деректер[Миль/галлон],деректер[КҮН],G38,деректер[ӘРЕКЕТ],$I$8),NA()) ->  | J38: =IFERROR(AVERAGEIFS(деректер[¢/МИЛЬ],деректер[КҮН],G38,деректер[ӘРЕКЕТ],$J$8),NA()) -> 
F39: 30 | G39: 2012-05-30 | H39: =SUMIFS(деректер[МИЛЬ],деректер[КҮН],G39,деректер[ӘРЕКЕТ],$H$8) -> 0 | I39: =IFERROR(AVERAGEIFS(деректер[Миль/галлон],деректер[КҮН],G39,деректер[ӘРЕКЕТ],$I$8),NA()) ->  | J39: =IFERROR(AVERAGEIFS(деректер[¢/МИЛЬ],деректер[КҮН],G39,деректер[ӘРЕКЕТ],$J$8),NA()) -> 
F40: 31 | G40: 2012-05-31 | H40: =SUMIFS(деректер[МИЛЬ],деректер[КҮН],G40,деректер[ӘРЕКЕТ],$H$8) -> 0 | I40: =IFERROR(AVERAGEIFS(деректер[Миль/галлон],деректер[КҮН],G40,деректер[ӘРЕКЕТ],$I$8),NA()) ->  | J40: =IFERROR(AVERAGEIFS(деректер[¢/МИЛЬ],деректер[КҮН],G40,деректер[ӘРЕКЕТ],$J$8),NA()) -> 
F41: 32 | G41: 2012-06-01 | H41: =SUMIFS(деректер[МИЛЬ],деректер[КҮН],G41,деректер[ӘРЕКЕТ],$H$8) -> 0 | I41: =IFERROR(AVERAGEIFS(деректер[Миль/галлон],деректер[КҮН],G41,деректер[ӘРЕКЕТ],$I$8),NA()) ->  | J41: =IFERROR(AVERAGEIFS(деректер[¢/МИЛЬ],деректер[КҮН],G41,деректер[ӘРЕКЕТ],$J$8),NA()) -> 
F42: 33 | G42: 2012-06-02 | H42: =SUMIFS(деректер[МИЛЬ],деректер[КҮН],G42,деректер[ӘРЕКЕТ],$H$8) -> 0 | I42: =IFERROR(AVERAGEIFS(деректер[Миль/галлон],деректер[КҮН],G42,деректер[ӘРЕКЕТ],$I$8),NA()) ->  | J42: =IFERROR(AVERAGEIFS(деректер[¢/МИЛЬ],деректер[КҮН],G42,деректер[ӘРЕКЕТ],$J$8),NA()) -> 
F43: 34 | G43: =G42+1 -> 2012-06-03 | H43: =SUMIFS(деректер[МИЛЬ],деректер[КҮН],G43,деректер[ӘРЕКЕТ],$H$8) -> 0 | I43: =IFERROR(AVERAGEIFS(деректер[Миль/галлон],деректер[КҮН],G43,деректер[ӘРЕКЕТ],$I$8),NA()) ->  | J43: =IFERROR(AVERAGEIFS(деректер[¢/МИЛЬ],деректер[КҮН],G43,деректер[ӘРЕКЕТ],$J$8),NA()) -> 
F44: 35 | G44: 2012-06-04 | H44: =SUMIFS(деректер[МИЛЬ],деректер[КҮН],G44,деректер[ӘРЕКЕТ],$H$8) -> 0 | I44: =IFERROR(AVERAGEIFS(деректер[Миль/галлон],деректер[КҮН],G44,деректер[ӘРЕКЕТ],$I$8),NA()) ->  | J44: =IFERROR(AVERAGEIFS(деректер[¢/МИЛЬ],деректер[КҮН],G44,деректер[ӘРЕКЕТ],$J$8),NA()) -> 
F45: 36 | G45: 2012-06-05 | H45: =SUMIFS(деректер[МИЛЬ],деректер[КҮН],G45,деректер[ӘРЕКЕТ],$H$8) -> 0 | I45: =IFERROR(AVERAGEIFS(деректер[Миль/галлон],деректер[КҮН],G45,деректер[ӘРЕКЕТ],$I$8),NA()) ->  | J45: =IFERROR(AVERAGEIFS(деректер[¢/МИЛЬ],деректер[КҮН],G45,деректер[ӘРЕКЕТ],$J$8),NA()) -> 
F46: 37 | G46: 2012-06-06 | H46: =SUMIFS(деректер[МИЛЬ],деректер[КҮН],G46,деректер[ӘРЕКЕТ],$H$8) -> 0 | I46: =IFERROR(AVERAGEIFS(деректер[Миль/галлон],деректер[КҮН],G46,деректер[ӘРЕКЕТ],$I$8),NA()) ->  | J46: =IFERROR(AVERAGEIFS(деректер[¢/МИЛЬ],деректер[КҮН],G46,деректер[ӘРЕКЕТ],$J$8),NA()) -> 
F47: 38 | G47: 2012-06-07 | H47: =SUMIFS(деректер[МИЛЬ],деректер[КҮН],G47,деректер[ӘРЕКЕТ],$H$8) -> 0 | I47: =IFERROR(AVERAGEIFS(деректер[Миль/галлон],деректер[КҮН],G47,деректер[ӘРЕКЕТ],$I$8),NA()) ->  | J47: =IFERROR(AVERAGEIFS(деректер[¢/МИЛЬ],деректер[КҮН],G47,деректер[ӘРЕКЕТ],$J$8),NA()) -> 
F48: 39 | G48: 2012-06-08 | H48: =SUMIFS(деректер[МИЛЬ],деректер[КҮН],G48,деректер[ӘРЕКЕТ],$H$8) -> 0 | I48: =IFERROR(AVERAGEIFS(деректер[Миль/галлон],деректер[КҮН],G48,деректер[ӘРЕКЕТ],$I$8),NA()) ->  | J48: =IFERROR(AVERAGEIFS(деректер[¢/МИЛЬ],деректер[КҮН],G48,деректер[ӘРЕКЕТ],$J$8),NA()) -> 
F49: 40 | G49: 2012-06-09 | H49: =SUMIFS(деректер[МИЛЬ],деректер[КҮН],G49,деректер[ӘРЕКЕТ],$H$8) -> 0 | I49: =IFERROR(AVERAGEIFS(деректер[Миль/галлон],деректер[КҮН],G49,деректер[ӘРЕКЕТ],$I$8),NA()) ->  | J49: =IFERROR(AVERAGEIFS(деректер[¢/МИЛЬ],деректер[КҮН],G49,деректер[ӘРЕКЕТ],$J$8),NA()) -> 
F50: 41 | G50: 2012-06-10 | H50: =SUMIFS(деректер[МИЛЬ],деректер[КҮН],G50,деректер[ӘРЕКЕТ],$H$8) -> 0 | I50: =IFERROR(AVERAGEIFS(деректер[Миль/галлон],деректер[КҮН],G50,деректер[ӘРЕКЕТ],$I$8),NA()) ->  | J50: =IFERROR(AVERAGEIFS(деректер[¢/МИЛЬ],деректер[КҮН],G50,деректер[ӘРЕКЕТ],$J$8),NA()) -> 
F51: 42 | G51: 2012-06-11 | H51: =SUMIFS(деректер[МИЛЬ],деректер[КҮН],G51,деректер[ӘРЕКЕТ],$H$8) -> 0 | I51: =IFERROR(AVERAGEIFS(деректер[Миль/галлон],деректер[КҮН],G51,деректер[ӘРЕКЕТ],$I$8),NA()) ->  | J51: =IFERROR(AVERAGEIFS(деректер[¢/МИЛЬ],деректер[КҮН],G51,деректер[ӘРЕКЕТ],$J$8),NA()) -> 
F52: 43 | G52: 2012-06-12 | H52: =SUMIFS(деректер[МИЛЬ],деректер[КҮН],G52,деректер[ӘРЕКЕТ],$H$8) -> 0 | I52: =IFERROR(AVERAGEIFS(деректер[Миль/галлон],деректер[КҮН],G52,деректер[ӘРЕКЕТ],$I$8),NA()) ->  | J52: =IFERROR(AVERAGEIFS(деректер[¢/МИЛЬ],деректер[КҮН],G52,деректер[ӘРЕКЕТ],$J$8),NA()) -> 
F53: 44 | G53: 2012-06-13 | H53: =SUMIFS(деректер[МИЛЬ],деректер[КҮН],G53,деректер[ӘРЕКЕТ],$H$8) -> 0 | I53: =IFERROR(AVERAGEIFS(деректер[Миль/галлон],деректер[КҮН],G53,деректер[ӘРЕКЕТ],$I$8),NA()) ->  | J53: =IFERROR(AVERAGEIFS(деректер[¢/МИЛЬ],деректер[КҮН],G53,деректер[ӘРЕКЕТ],$J$8),NA()) -> 
F54: 45 | G54: 2012-06-14 | H54: =SUMIFS(деректер[МИЛЬ],деректер[КҮН],G54,деректер[ӘРЕКЕТ],$H$8) -> 0 | I54: =IFERROR(AVERAGEIFS(деректер[Миль/галлон],деректер[КҮН],G54,деректер[ӘРЕКЕТ],$I$8),NA()) ->  | J54: =IFERROR(AVERAGEIFS(деректер[¢/МИЛЬ],деректер[КҮН],G54,деректер[ӘРЕКЕТ],$J$8),NA()) -> 
F55: 46 | G55: 2012-06-15 | H55: =SUMIFS(деректер[МИЛЬ],деректер[КҮН],G55,деректер[ӘРЕКЕТ],$H$8) -> 0 | I55: =IFERROR(AVERAGEIFS(деректер[Миль/галлон],деректер[КҮН],G55,деректер[ӘРЕКЕТ],$I$8),NA()) ->  | J55: =IFERROR(AVERAGEIFS(деректер[¢/МИЛЬ],деректер[КҮН],G55,деректер[ӘРЕКЕТ],$J$8),NA()) -> 
F56: 47 | G56: 2012-06-16 | H56: =SUMIFS(деректер[МИЛЬ],деректер[КҮН],G56,деректер[ӘРЕКЕТ],$H$8) -> 0 | I56: =IFERROR(AVERAGEIFS(деректер[Миль/галлон],деректер[КҮН],G56,деректер[ӘРЕКЕТ],$I$8),NA()) ->  | J56: =IFERROR(AVERAGEIFS(деректер[¢/МИЛЬ],деректер[КҮН],G56,деректер[ӘРЕКЕТ],$J$8),NA()) -> 
F57: 48 | G57: 2012-06-17 | H57: =SUMIFS(деректер[МИЛЬ],деректер[КҮН],G57,деректер[ӘРЕКЕТ],$H$8) -> 0 | I57: =IFERROR(AVERAGEIFS(деректер[Миль/галлон],деректер[КҮН],G57,деректер[ӘРЕКЕТ],$I$8),NA()) ->  | J57: =IFERROR(AVERAGEIFS(деректер[¢/МИЛЬ],деректер[КҮН],G57,деректер[ӘРЕКЕТ],$J$8),NA()) -> 
F58: 49 | G58: 2012-06-18 | H58: =SUMIFS(деректер[МИЛЬ],деректер[КҮН],G58,деректер[ӘРЕКЕТ],$H$8) -> 0 | I58: =IFERROR(AVERAGEIFS(деректер[Миль/галлон],деректер[КҮН],G58,деректер[ӘРЕКЕТ],$I$8),NA()) ->  | J58: =IFERROR(AVERAGEIFS(деректер[¢/МИЛЬ],деректер[КҮН],G58,деректер[ӘРЕКЕТ],$J$8),NA()) -> 
F59: 50 | G59: 2012-06-19 | H59: =SUMIFS(деректер[МИЛЬ],деректер[КҮН],G59,деректер[ӘРЕКЕТ],$H$8) -> 0 | I59: =IFERROR(AVERAGEIFS(деректер[Миль/галлон],деректер[КҮН],G59,деректер[ӘРЕКЕТ],$I$8),NA()) ->  | J59: =IFERROR(AVERAGEIFS(деректер[¢/МИЛЬ],деректер[КҮН],G59,деректер[ӘРЕКЕТ],$J$8),NA()) -> 
F60: 51 | G60: 2012-06-20 | H60: =SUMIFS(деректер[МИЛЬ],деректер[КҮН],G60,деректер[ӘРЕКЕТ],$H$8) -> 0 | I60: =IFERROR(AVERAGEIFS(деректер[Миль/галлон],деректер[КҮН],G60,деректер[ӘРЕКЕТ],$I$8),NA()) ->  | J60: =IFERROR(AVERAGEIFS(деректер[¢/МИЛЬ],деректер[КҮН],G60,деректер[ӘРЕКЕТ],$J$8),NA()) -> 
F61: 52 | G61: 2012-06-21 | H61: =SUMIFS(деректер[МИЛЬ],деректер[КҮН],G61,деректер[ӘРЕКЕТ],$H$8) -> 0 | I61: =IFERROR(AVERAGEIFS(деректер[Миль/галлон],деректер[КҮН],G61,деректер[ӘРЕКЕТ],$I$8),NA()) ->  | J61: =IFERROR(AVERAGEIFS(деректер[¢/МИЛЬ],деректер[КҮН],G61,деректер[ӘРЕКЕТ],$J$8),NA()) -> 
F62: 53 | G62: 2012-06-22 | H62: =SUMIFS(деректер[МИЛЬ],деректер[КҮН],G62,деректер[ӘРЕКЕТ],$H$8) -> 0 | I62: =IFERROR(AVERAGEIFS(деректер[Миль/галлон],деректер[КҮН],G62,деректер[ӘРЕКЕТ],$I$8),NA()) ->  | J62: =IFERROR(AVERAGEIFS(деректер[¢/МИЛЬ],деректер[КҮН],G62,деректер[ӘРЕКЕТ],$J$8),NA()) -> 
F63: 54 | G63: 2012-06-23 | H63: =SUMIFS(деректер[МИЛЬ],деректер[КҮН],G63,деректер[ӘРЕКЕТ],$H$8) -> 0 | I63: =IFERROR(AVERAGEIFS(деректер[Миль/галлон],деректер[КҮН],G63,деректер[ӘРЕКЕТ],$I$8),NA()) ->  | J63: =IFERROR(AVERAGEIFS(деректер[¢/МИЛЬ],деректер[КҮН],G63,деректер[ӘРЕКЕТ],$J$8),NA()) -> 
F64: 55 | G64: 2012-06-24 | H64: =SUMIFS(деректер[МИЛЬ],деректер[КҮН],G64,деректер[ӘРЕКЕТ],$H$8) -> 0 | I64: =IFERROR(AVERAGEIFS(деректер[Миль/галлон],деректер[КҮН],G64,деректер[ӘРЕКЕТ],$I$8),NA()) ->  | J64: =IFERROR(AVERAGEIFS(деректер[¢/МИЛЬ],деректер[КҮН],G64,деректер[ӘРЕКЕТ],$J$8),NA()) -> 
F65: 56 | G65: 2012-06-25 | H65: =SUMIFS(деректер[МИЛЬ],деректер[КҮН],G65,деректер[ӘРЕКЕТ],$H$8) -> 0 | I65: =IFERROR(AVERAGEIFS(деректер[Миль/галлон],деректер[КҮН],G65,деректер[ӘРЕКЕТ],$I$8),NA()) ->  | J65: =IFERROR(AVERAGEIFS(деректер[¢/МИЛЬ],деректер[КҮН],G65,деректер[ӘРЕКЕТ],$J$8),NA()) -> 
F66: 57 | G66: 2012-06-26 | H66: =SUMIFS(деректер[МИЛЬ],деректер[КҮН],G66,деректер[ӘРЕКЕТ],$H$8) -> 0 | I66: =IFERROR(AVERAGEIFS(деректер[Миль/галлон],деректер[КҮН],G66,деректер[ӘРЕКЕТ],$I$8),NA()) ->  | J66: =IFERROR(AVERAGEIFS(деректер[¢/МИЛЬ],деректер[КҮН],G66,деректер[ӘРЕКЕТ],$J$8),NA()) -> 
F67: 58 | G67: 2012-06-27 | H67: =SUMIFS(деректер[МИЛЬ],деректер[КҮН],G67,деректер[ӘРЕКЕТ],$H$8) -> 0 | I67: =IFERROR(AVERAGEIFS(деректер[Миль/галлон],деректер[КҮН],G67,деректер[ӘРЕКЕТ],$I$8),NA()) ->  | J67: =IFERROR(AVERAGEIFS(деректер[¢/МИЛЬ],деректер[КҮН],G67,деректер[ӘРЕКЕТ],$J$8),NA()) -> 
F68: 59 | G68: 2012-06-28 | H68: =SUMIFS(деректер[МИЛЬ],деректер[КҮН],G68,деректер[ӘРЕКЕТ],$H$8) -> 0 | I68: =IFERROR(AVERAGEIFS(деректер[Миль/галлон],деректер[КҮН],G68,деректер[ӘРЕКЕТ],$I$8),NA()) ->  | J68: =IFERROR(AVERAGEIFS(деректер[¢/МИЛЬ],деректер[КҮН],G68,деректер[ӘРЕКЕТ],$J$8),NA()) -> 
F69: 60 | G69: 2012-06-29 | H69: =SUMIFS(деректер[МИЛЬ],деректер[КҮН],G69,деректер[ӘРЕКЕТ],$H$8) -> 0 | I69: =IFERROR(AVERAGEIFS(деректер[Миль/галлон],деректер[КҮН],G69,деректер[ӘРЕКЕТ],$I$8),NA()) ->  | J69: =IFERROR(AVERAGEIFS(деректер[¢/МИЛЬ],деректер[КҮН],G69,деректер[ӘРЕКЕТ],$J$8),NA()) -> 
